[Event "Titled Tuesday Blitz January 25 2022"]
[White "Abdrlauf, Elham"]
[Black "Mortazavi, Ali"]
[WhiteFideId "1533533"]
[BlackFideId "401323"]
[WhiteElo "2334"]
[BlackElo "2339"]
[Result "0-1"]
[Round "01"]
[TimeControl "180+1"]
[Date "2022.01.26"]
[WhiteClock "0:00:01"]
[BlackClock "0:00:35"]

1. e4 {[%clk 0:02:57]}  c6 {[%clk 0:02:59]} 2. d4 {[%clk 0:02:57]}  d5 {[%clk 0:03:00]} 3. Nc3 {[%clk 0:02:57]}  dxe4 {[%clk 0:03:00]} 4. Nxe4 {[%clk 0:02:58]}  Nf6 {[%clk 0:03:01]} 5. Nxf6+ {[%clk 0:02:58]}  exf6 {[%clk 0:03:02]} 6. c3 {[%clk 0:02:59]}  Bd6 {[%clk 0:03:02]} 7. Bd3 {[%clk 0:03:00]}  O-O {[%clk 0:03:03]} 8. Qc2 {[%clk 0:03:00]}  Re8+ {[%clk 0:03:03]} 9. Ne2 {[%clk 0:03:01]}  h5 {[%clk 0:03:04]} 10. O-O {[%clk 0:03:01]}  h4 {[%clk 0:03:04]} 11. Bf4 {[%clk 0:03:02]}  Be6 {[%clk 0:03:04]} 12. h3 {[%clk 0:02:59]}  Na6 {[%clk 0:03:00]} 13. Rfe1 {[%clk 0:02:51]}  Nc7 {[%clk 0:02:56]} 14. Bh7+ {[%clk 0:02:50]}  Kh8 {[%clk 0:02:53]} 15. Bf5 {[%clk 0:02:47]}  Nd5 {[%clk 0:02:46]} 16. Bd2 {[%clk 0:02:42]}  Qd7 {[%clk 0:02:40]} 17. Bxe6 {[%clk 0:02:39]}  Rxe6 {[%clk 0:02:39]} 18. c4 {[%clk 0:02:33]}  Nb4 {[%clk 0:02:35]} 19. Qf5 {[%clk 0:01:55]}  g6 {[%clk 0:02:24]} 20. Qg4 {[%clk 0:01:23]}  Nc2 {[%clk 0:02:23]} 21. d5 {[%clk 0:01:11]}  Re7 {[%clk 0:02:12]} 22. Qxh4+ {[%clk 0:01:05]}  Kg8 {[%clk 0:02:12]} 23. Qxf6 {[%clk 0:00:54]}  Be5 {[%clk 0:02:07]} 24. Qf3 {[%clk 0:00:50]}  Nxa1 {[%clk 0:02:04]} 25. Rxa1 {[%clk 0:00:50]}  cxd5 {[%clk 0:01:57]} 26. cxd5 {[%clk 0:00:50]}  Bxb2 {[%clk 0:01:49]} 27. Rb1 {[%clk 0:00:50]}  Bg7 {[%clk 0:01:45]} 28. Be3 {[%clk 0:00:20]}  Rae8 {[%clk 0:01:17]} 29. g3 {[%clk 0:00:19]}  Qxh3 {[%clk 0:01:12]} 30. d6 {[%clk 0:00:16]}  Rd7 {[%clk 0:01:12]} 31. Rxb7 {[%clk 0:00:16]}  Qe6 {[%clk 0:01:02]} 32. Rxd7 {[%clk 0:00:10]}  Qxd7 {[%clk 0:01:02]} 33. Bf4 {[%clk 0:00:08]}  Be5 {[%clk 0:00:58]} 34. Qd3 {[%clk 0:00:06]}  Qxd6 {[%clk 0:00:42]} 35. Qf3 {[%clk 0:00:06]}  Qd1+ {[%clk 0:00:39]} 36. Kg2 {[%clk 0:00:06]}  Bxf4 {[%clk 0:00:38]} 37. Nxf4 {[%clk 0:00:06]}  Qxf3+ {[%clk 0:00:36]} 38. Kxf3 {[%clk 0:00:07]}  Re5 {[%clk 0:00:36]} 39. Nd3 {[%clk 0:00:03]}  Ra5 {[%clk 0:00:36]} 40. Nc1 {[%clk 0:00:03]}  Rc5 {[%clk 0:00:35]} 41. Nb3 {[%clk 0:00:01]}  Rc2 {[%clk 0:00:35]} 0-1


[Site "https://www.chess.com"]

[Event "Titled Tuesday Blitz January 25 2022"]
[White "Albornoz Cabrera, Carlos Daniel"]
[Black "Goncalves, Davi Sulzbacher"]
[WhiteFideId "3518736"]
[BlackFideId "2154510"]
[WhiteElo "2490"]
[BlackElo "2107"]
[Result "1/2-1/2"]
[Round "01"]
[TimeControl "180+1"]
[Date "2022.01.26"]
[WhiteClock "0:00:11"]
[BlackClock "0:00:05"]

1. e4 {[%clk 0:03:00]}  c5 {[%clk 0:02:59]} 2. Nf3 {[%clk 0:03:00]}  Nc6 {[%clk 0:03:00]} 3. Bb5 {[%clk 0:02:59]}  g6 {[%clk 0:03:00]} 4. O-O {[%clk 0:02:59]}  Bg7 {[%clk 0:02:59]} 5. Bxc6 {[%clk 0:02:59]}  dxc6 {[%clk 0:02:59]} 6. d3 {[%clk 0:02:59]}  Bg4 {[%clk 0:02:58]} 7. h3 {[%clk 0:02:59]}  Bxf3 {[%clk 0:02:58]} 8. Qxf3 {[%clk 0:03:00]}  Nf6 {[%clk 0:02:57]} 9. Nc3 {[%clk 0:02:59]}  Nd7 {[%clk 0:02:53]} 10. Qe2 {[%clk 0:02:57]}  e5 {[%clk 0:02:49]} 11. Be3 {[%clk 0:02:51]}  Qe7 {[%clk 0:02:45]} 12. a3 {[%clk 0:02:48]}  Nf8 {[%clk 0:02:43]} 13. b4 {[%clk 0:02:46]}  b6 {[%clk 0:02:15]} 14. bxc5 {[%clk 0:02:45]}  bxc5 {[%clk 0:02:15]} 15. Na4 {[%clk 0:02:41]}  Ne6 {[%clk 0:02:15]} 16. Qd2 {[%clk 0:02:41]}  Nd4 {[%clk 0:01:28]} 17. Bxd4 {[%clk 0:02:40]}  cxd4 {[%clk 0:01:27]} 18. Qb4 {[%clk 0:02:26]}  Qxb4 {[%clk 0:01:26]} 19. axb4 {[%clk 0:02:27]}  Bf8 {[%clk 0:01:26]} 20. Nb6 {[%clk 0:02:24]}  Rb8 {[%clk 0:01:25]} 21. Nc4 {[%clk 0:02:24]}  f6 {[%clk 0:01:14]} 22. Rxa7 {[%clk 0:02:23]}  Bxb4 {[%clk 0:01:14]} 23. Rc7 {[%clk 0:02:05]}  O-O {[%clk 0:01:09]} 24. Rxc6 {[%clk 0:02:04]}  Bc3 {[%clk 0:01:09]} 25. f4 {[%clk 0:01:56]}  exf4 {[%clk 0:01:05]} 26. Rxf4 {[%clk 0:01:55]}  Rb1+ {[%clk 0:01:04]} 27. Kh2 {[%clk 0:01:29]}  Rc1 {[%clk 0:01:00]} 28. Rf2 {[%clk 0:01:02]}  Be1 {[%clk 0:00:45]} 29. Re2 {[%clk 0:00:58]}  Bb4 {[%clk 0:00:38]} 30. Nb6 {[%clk 0:00:52]}  Kg7 {[%clk 0:00:31]} 31. Nd5 {[%clk 0:00:50]}  Ba5 {[%clk 0:00:23]} 32. Rf2 {[%clk 0:00:33]}  f5 {[%clk 0:00:18]} 33. exf5 {[%clk 0:00:27]}  Rxf5 {[%clk 0:00:17]} 34. Rxf5 {[%clk 0:00:25]}  gxf5 {[%clk 0:00:18]} 35. Kg3 {[%clk 0:00:24]}  Bc3 {[%clk 0:00:18]} 36. Nxc3 {[%clk 0:00:22]}  dxc3 {[%clk 0:00:12]} 37. Rxc3 {[%clk 0:00:22]}  Kf6 {[%clk 0:00:13]} 38. Rc4 {[%clk 0:00:20]}  h5 {[%clk 0:00:12]} 39. Kf2 {[%clk 0:00:17]}  h4 {[%clk 0:00:10]} 40. Rc8 {[%clk 0:00:13]}  Kg5 {[%clk 0:00:10]} 41. d4 {[%clk 0:00:09]}  Kf4 {[%clk 0:00:10]} 42. Rc3 {[%clk 0:00:07]}  Ke4 {[%clk 0:00:09]} 43. d5 {[%clk 0:00:05]}  Kxd5 {[%clk 0:00:09]} 44. Rd3+ {[%clk 0:00:04]}  Ke4 {[%clk 0:00:09]} 45. Re3+ {[%clk 0:00:04]}  Kf4 {[%clk 0:00:09]} 46. Re2 {[%clk 0:00:05]}  Ra1 {[%clk 0:00:08]} 47. Rd2 {[%clk 0:00:05]}  Rc1 {[%clk 0:00:07]} 48. Ke2 {[%clk 0:00:05]}  Ke4 {[%clk 0:00:07]} 49. Kf2 {[%clk 0:00:04]}  Kf4 {[%clk 0:00:05]} 50. Rd4+ {[%clk 0:00:04]}  Ke5 {[%clk 0:00:06]} 51. Rc4 {[%clk 0:00:05]}  Kd5 {[%clk 0:00:05]} 52. Rc8 {[%clk 0:00:05]}  Ke4 {[%clk 0:00:05]} 53. Re8+ {[%clk 0:00:05]}  Kf4 {[%clk 0:00:05]} 54. Rc8 {[%clk 0:00:05]}  Ke4 {[%clk 0:00:06]} 55. Rc4+ {[%clk 0:00:06]}  Kd5 {[%clk 0:00:06]} 56. Rxh4 {[%clk 0:00:04]}  Rxc2+ {[%clk 0:00:06]} 57. Kf3 {[%clk 0:00:04]}  Ke5 {[%clk 0:00:07]} 58. Rh8 {[%clk 0:00:05]}  Rc3+ {[%clk 0:00:07]} 59. Kf2 {[%clk 0:00:05]}  Kf4 {[%clk 0:00:08]} 60. Re8 {[%clk 0:00:06]}  Rc2+ {[%clk 0:00:08]} 61. Re2 {[%clk 0:00:06]}  Rc3 {[%clk 0:00:08]} 62. Ra2 {[%clk 0:00:06]}  Rb3 {[%clk 0:00:08]} 63. Ra4+ {[%clk 0:00:06]}  Kg5 {[%clk 0:00:09]} 64. Rd4 {[%clk 0:00:05]}  Ra3 {[%clk 0:00:09]} 65. Rd2 {[%clk 0:00:05]}  Rb3 {[%clk 0:00:09]} 66. Re2 {[%clk 0:00:05]}  Kf4 {[%clk 0:00:09]} 67. Rc2 {[%clk 0:00:05]}  Ra3 {[%clk 0:00:09]} 68. Rc4+ {[%clk 0:00:06]}  Kg5 {[%clk 0:00:10]} 69. Rd4 {[%clk 0:00:06]}  Rb3 {[%clk 0:00:10]} 70. g3 {[%clk 0:00:06]}  Ra3 {[%clk 0:00:10]} 71. h4+ {[%clk 0:00:06]}  Kh5 {[%clk 0:00:10]} 72. Rd8 {[%clk 0:00:06]}  Kg6 {[%clk 0:00:08]} 73. Rg8+ {[%clk 0:00:06]}  Kf6 {[%clk 0:00:08]} 74. Kg2 {[%clk 0:00:07]}  Ra2+ {[%clk 0:00:08]} 75. Kh3 {[%clk 0:00:07]}  Ra1 {[%clk 0:00:08]} 76. Rf8+ {[%clk 0:00:07]}  Kg6 {[%clk 0:00:06]} 77. Rb8 {[%clk 0:00:08]}  Rh1+ {[%clk 0:00:05]} 78. Kg2 {[%clk 0:00:09]}  Ra1 {[%clk 0:00:06]} 79. Rb6+ {[%clk 0:00:09]}  Kg7 {[%clk 0:00:04]} 80. Rc6 {[%clk 0:00:09]}  Ra3 {[%clk 0:00:03]} 81. Kh3 {[%clk 0:00:09]}  f4 {[%clk 0:00:03]} 82. Rc4 {[%clk 0:00:08]}  Rxg3+ {[%clk 0:00:02]} 83. Kh2 {[%clk 0:00:08]}  Rg4 {[%clk 0:00:03]} 84. Kh3 {[%clk 0:00:08]}  Rg3+ {[%clk 0:00:03]} 85. Kh2 {[%clk 0:00:09]}  Rg4 {[%clk 0:00:04]} 86. h5 {[%clk 0:00:10]}  Rh4+ {[%clk 0:00:04]} 87. Kg2 {[%clk 0:00:10]}  Kh6 {[%clk 0:00:04]} 88. Kf3 {[%clk 0:00:10]}  Kxh5 {[%clk 0:00:05]} 89. Rxf4 {[%clk 0:00:10]}  Rxf4+ {[%clk 0:00:05]} 90. Kxf4 {[%clk 0:00:11]} 1/2-1/2


[Site "https://www.chess.com"]

[Event "Titled Tuesday Blitz January 25 2022"]
[White "Bacrot, Etienne"]
[Black "Urbina Perez, Juan Antonio"]
[WhiteFideId "605506"]
[BlackFideId "2217368"]
[WhiteElo "2673"]
[BlackElo "2192"]
[Result "0-1"]
[Round "01"]
[TimeControl "180+1"]
[Date "2022.01.26"]
[WhiteClock "0:00:05"]
[BlackClock "0:00:06"]

1. d4 {[%clk 0:03:00]}  d5 {[%clk 0:02:59]} 2. Nf3 {[%clk 0:02:59]}  Nf6 {[%clk 0:02:54]} 3. Bf4 {[%clk 0:02:58]}  e6 {[%clk 0:02:54]} 4. e3 {[%clk 0:02:58]}  Bd6 {[%clk 0:02:54]} 5. Nbd2 {[%clk 0:02:58]}  c5 {[%clk 0:02:50]} 6. Bb5+ {[%clk 0:02:55]}  Nc6 {[%clk 0:02:48]} 7. Ne5 {[%clk 0:02:53]}  Bxe5 {[%clk 0:02:46]} 8. dxe5 {[%clk 0:02:48]}  Nd7 {[%clk 0:02:45]} 9. Qg4 {[%clk 0:02:37]}  Kf8 {[%clk 0:02:30]} 10. Bxc6 {[%clk 0:02:30]}  bxc6 {[%clk 0:02:30]} 11. c4 {[%clk 0:02:30]}  h6 {[%clk 0:02:19]} 12. h4 {[%clk 0:02:22]}  Qc7 {[%clk 0:02:06]} 13. O-O {[%clk 0:02:17]}  Nxe5 {[%clk 0:01:59]} 14. Qg3 {[%clk 0:02:14]}  f6 {[%clk 0:01:58]} 15. Rac1 {[%clk 0:02:05]}  Ba6 {[%clk 0:01:43]} 16. Rfd1 {[%clk 0:02:00]}  Rc8 {[%clk 0:01:43]} 17. b3 {[%clk 0:01:41]}  g5 {[%clk 0:01:42]} 18. Bxe5 {[%clk 0:01:39]}  Qxe5 {[%clk 0:01:42]} 19. Qxe5 {[%clk 0:01:38]}  fxe5 {[%clk 0:01:43]} 20. hxg5 {[%clk 0:01:37]}  hxg5 {[%clk 0:01:44]} 21. Nf3 {[%clk 0:01:37]}  e4 {[%clk 0:01:22]} 22. Nxg5 {[%clk 0:01:28]}  Ke7 {[%clk 0:01:22]} 23. Nh3 {[%clk 0:01:27]}  Rcg8 {[%clk 0:00:52]} 24. Kh2 {[%clk 0:01:15]}  Kd6 {[%clk 0:00:47]} 25. Rd2 {[%clk 0:01:12]}  e5 {[%clk 0:00:44]} 26. cxd5 {[%clk 0:00:45]}  cxd5 {[%clk 0:00:45]} 27. Rdc2 {[%clk 0:00:45]}  c4 {[%clk 0:00:35]} 28. bxc4 {[%clk 0:00:43]}  Bxc4 {[%clk 0:00:36]} 29. Rb2 {[%clk 0:00:42]}  Rb8 {[%clk 0:00:30]} 30. Rcb1 {[%clk 0:00:38]}  Rxb2 {[%clk 0:00:30]} 31. Rxb2 {[%clk 0:00:39]}  Kc6 {[%clk 0:00:25]} 32. Kg3 {[%clk 0:00:29]}  Rg8+ {[%clk 0:00:22]} 33. Kh2 {[%clk 0:00:29]}  d4 {[%clk 0:00:22]} 34. exd4 {[%clk 0:00:25]}  exd4 {[%clk 0:00:23]} 35. Nf4 {[%clk 0:00:24]}  Rg7 {[%clk 0:00:18]} 36. Rc2 {[%clk 0:00:19]}  Kb5 {[%clk 0:00:16]} 37. g3 {[%clk 0:00:18]}  d3 {[%clk 0:00:14]} 38. Rb2+ {[%clk 0:00:16]}  Kc5 {[%clk 0:00:14]} 39. Kg2 {[%clk 0:00:17]}  Kd4 {[%clk 0:00:13]} 40. Nh5 {[%clk 0:00:13]}  Rf7 {[%clk 0:00:10]} 41. Rb1 {[%clk 0:00:08]}  d2 {[%clk 0:00:10]} 42. Nf4 {[%clk 0:00:08]}  Kc3 {[%clk 0:00:09]} 43. Ng6 {[%clk 0:00:07]}  Rf5 {[%clk 0:00:07]} 44. Nh4 {[%clk 0:00:07]}  Rd5 {[%clk 0:00:06]} 45. Rd1 {[%clk 0:00:06]}  Kc2 {[%clk 0:00:06]} 46. Rxd2+ {[%clk 0:00:05]}  Kxd2 {[%clk 0:00:07]} 47. f4 {[%clk 0:00:05]}  exf3+ {[%clk 0:00:06]} 0-1


[Site "https://www.chess.com"]

[Event "Titled Tuesday Blitz January 25 2022"]
[White "Berezin, Viktor"]
[Black "Evdokimov, Alexander A."]
[WhiteFideId "14107872"]
[BlackFideId "4139275"]
[WhiteElo "2310"]
[BlackElo "2444"]
[Result "1-0"]
[Round "01"]
[TimeControl "180+1"]
[Date "2022.01.26"]
[WhiteClock "0:00:08"]
[BlackClock "0:00:19"]

1. d4 {[%clk 0:02:47]}  Nf6 {[%clk 0:02:59]} 2. Nf3 {[%clk 0:02:46]}  g6 {[%clk 0:02:59]} 3. g3 {[%clk 0:02:46]}  Bg7 {[%clk 0:02:59]} 4. Bg2 {[%clk 0:02:47]}  O-O {[%clk 0:03:00]} 5. O-O {[%clk 0:02:47]}  d6 {[%clk 0:03:00]} 6. a4 {[%clk 0:02:46]}  a5 {[%clk 0:02:53]} 7. Nc3 {[%clk 0:02:28]}  d5 {[%clk 0:02:51]} 8. Ne5 {[%clk 0:02:15]}  c6 {[%clk 0:02:44]} 9. e4 {[%clk 0:02:11]}  dxe4 {[%clk 0:02:43]} 10. Nxe4 {[%clk 0:02:12]}  Nxe4 {[%clk 0:02:37]} 11. Bxe4 {[%clk 0:02:13]}  Nd7 {[%clk 0:02:37]} 12. Nf3 {[%clk 0:01:59]}  Nf6 {[%clk 0:02:37]} 13. Bd3 {[%clk 0:01:56]}  Bg4 {[%clk 0:02:35]} 14. Be2 {[%clk 0:01:55]}  Nd5 {[%clk 0:02:23]} 15. c3 {[%clk 0:01:54]}  Qd6 {[%clk 0:02:20]} 16. Re1 {[%clk 0:01:52]}  Rfe8 {[%clk 0:02:18]} 17. Qb3 {[%clk 0:01:45]}  Qc7 {[%clk 0:02:13]} 18. Ne5 {[%clk 0:01:38]}  Bxe2 {[%clk 0:02:07]} 19. Rxe2 {[%clk 0:01:33]}  Qb6 {[%clk 0:02:00]} 20. Qc2 {[%clk 0:01:19]}  Qa6 {[%clk 0:01:51]} 21. Nd3 {[%clk 0:01:04]}  Rad8 {[%clk 0:01:46]} 22. Bg5 {[%clk 0:00:59]}  h6 {[%clk 0:01:39]} 23. Nc5 {[%clk 0:00:51]}  Qa7 {[%clk 0:01:10]} 24. Bd2 {[%clk 0:00:47]}  e6 {[%clk 0:01:00]} 25. Rae1 {[%clk 0:00:46]}  b6 {[%clk 0:00:59]} 26. Nd3 {[%clk 0:00:46]}  b5 {[%clk 0:00:59]} 27. Nc5 {[%clk 0:00:43]}  Rb8 {[%clk 0:00:54]} 28. Qc1 {[%clk 0:00:40]}  Kh7 {[%clk 0:00:53]} 29. h4 {[%clk 0:00:34]}  Nb6 {[%clk 0:00:44]} 30. h5 {[%clk 0:00:33]}  g5 {[%clk 0:00:43]} 31. Qc2+ {[%clk 0:00:32]}  Kg8 {[%clk 0:00:42]} 32. axb5 {[%clk 0:00:22]}  cxb5 {[%clk 0:00:42]} 33. Ne4 {[%clk 0:00:22]}  Nd5 {[%clk 0:00:39]} 34. Nc5 {[%clk 0:00:18]}  Rbc8 {[%clk 0:00:36]} 35. Qe4 {[%clk 0:00:17]}  Qa8 {[%clk 0:00:34]} 36. Qf3 {[%clk 0:00:17]}  Nb6 {[%clk 0:00:28]} 37. Qg4 {[%clk 0:00:17]}  Nc4 {[%clk 0:00:27]} 38. Bc1 {[%clk 0:00:16]}  b4 {[%clk 0:00:27]} 39. f4 {[%clk 0:00:15]}  f5 {[%clk 0:00:26]} 40. Qh3 {[%clk 0:00:15]}  g4 {[%clk 0:00:27]} 41. Qf1 {[%clk 0:00:14]}  bxc3 {[%clk 0:00:27]} 42. bxc3 {[%clk 0:00:14]}  Rxc5 {[%clk 0:00:26]} 43. dxc5 {[%clk 0:00:11]}  Bxc3 {[%clk 0:00:27]} 44. Rxe6 {[%clk 0:00:12]}  Bxe1 {[%clk 0:00:24]} 45. Qxe1 {[%clk 0:00:11]}  Rd8 {[%clk 0:00:20]} 46. Rg6+ {[%clk 0:00:08]}  Kh7 {[%clk 0:00:19]} 47. Qe7+ {[%clk 0:00:08]} 1-0


[Site "https://www.chess.com"]

[Event "Titled Tuesday Blitz January 25 2022"]
[White "Bethke, Richard"]
[Black "Horvath, Dominik"]
[WhiteFideId "12959243"]
[BlackFideId "1642561"]
[WhiteElo "2435"]
[BlackElo "2336"]
[Result "0-1"]
[Round "01"]
[TimeControl "180+1"]
[Date "2022.01.26"]
[WhiteClock "0:01:16"]
[BlackClock "0:01:43"]

1. e4 {[%clk 0:03:00]}  e5 {[%clk 0:02:50]} 2. Nf3 {[%clk 0:02:59]}  Nc6 {[%clk 0:02:48]} 3. Bc4 {[%clk 0:02:59]}  Bc5 {[%clk 0:02:48]} 4. O-O {[%clk 0:02:59]}  Nf6 {[%clk 0:02:48]} 5. d3 {[%clk 0:02:59]}  d6 {[%clk 0:02:48]} 6. c3 {[%clk 0:02:56]}  a6 {[%clk 0:02:48]} 7. Re1 {[%clk 0:02:51]}  Ba7 {[%clk 0:02:48]} 8. Nbd2 {[%clk 0:02:48]}  h6 {[%clk 0:02:46]} 9. Nf1 {[%clk 0:02:47]}  g5 {[%clk 0:02:46]} 10. d4 {[%clk 0:02:47]}  g4 {[%clk 0:02:42]} 11. dxe5 {[%clk 0:02:47]}  gxf3 {[%clk 0:02:37]} 12. exf6 {[%clk 0:02:44]}  fxg2 {[%clk 0:02:37]} 13. Ng3 {[%clk 0:02:36]}  Qxf6 {[%clk 0:02:33]} 14. Be3 {[%clk 0:02:36]}  Ne5 {[%clk 0:02:28]} 15. Be2 {[%clk 0:01:56]}  Bxe3 {[%clk 0:02:27]} 16. fxe3 {[%clk 0:01:57]}  Bh3 {[%clk 0:02:19]} 17. Qa4+ {[%clk 0:01:51]}  Bd7 {[%clk 0:02:16]} 18. Qb3 {[%clk 0:01:49]}  O-O-O {[%clk 0:02:16]} 19. Kxg2 {[%clk 0:01:41]}  Qg5 {[%clk 0:02:16]} 20. Rad1 {[%clk 0:01:31]}  h5 {[%clk 0:02:06]} 21. Kh1 {[%clk 0:01:28]}  h4 {[%clk 0:01:56]} 22. Nf5 {[%clk 0:01:24]}  Bc6 {[%clk 0:01:55]} 23. Rd5 {[%clk 0:01:16]}  Rdg8 {[%clk 0:01:43]} 0-1


[Site "https://www.chess.com"]

[Event "Titled Tuesday Blitz January 25 2022"]
[White "Costachi, Mihnea"]
[Black "Shubenkova, Veronika"]
[WhiteFideId "1217518"]
[BlackFideId "44124040"]
[WhiteElo "2464"]
[BlackElo "1938"]
[Result "1-0"]
[Round "01"]
[TimeControl "180+1"]
[Date "2022.01.26"]
[WhiteClock "0:02:02"]
[BlackClock "0:01:12"]

1. e4 {[%clk 0:02:53]}  c5 {[%clk 0:02:57]} 2. Nf3 {[%clk 0:02:52]}  e6 {[%clk 0:02:58]} 3. Bc4 {[%clk 0:02:50]}  Nc6 {[%clk 0:02:57]} 4. O-O {[%clk 0:02:47]}  a6 {[%clk 0:02:57]} 5. c3 {[%clk 0:02:45]}  b5 {[%clk 0:02:57]} 6. Bb3 {[%clk 0:02:44]}  c4 {[%clk 0:02:53]} 7. Bc2 {[%clk 0:02:43]}  Bb7 {[%clk 0:02:53]} 8. b3 {[%clk 0:02:43]}  d5 {[%clk 0:02:51]} 9. exd5 {[%clk 0:02:43]}  exd5 {[%clk 0:02:50]} 10. Re1+ {[%clk 0:02:43]}  Be7 {[%clk 0:02:50]} 11. d3 {[%clk 0:02:43]}  cxd3 {[%clk 0:02:47]} 12. Qxd3 {[%clk 0:02:40]}  Nf6 {[%clk 0:02:47]} 13. Nbd2 {[%clk 0:02:29]}  O-O {[%clk 0:02:46]} 14. Ng5 {[%clk 0:02:29]}  g6 {[%clk 0:02:39]} 15. Bb2 {[%clk 0:02:23]}  d4 {[%clk 0:02:35]} 16. cxd4 {[%clk 0:02:20]}  Nb4 {[%clk 0:02:35]} 17. Qh3 {[%clk 0:02:14]}  Nxc2 {[%clk 0:02:30]} 18. d5 {[%clk 0:02:14]}  Bc8 {[%clk 0:02:27]} 19. Qh6 {[%clk 0:02:09]}  Qxd5 {[%clk 0:01:25]} 20. Bxf6 {[%clk 0:02:03]}  Qxg5 {[%clk 0:01:12]} 21. Qg7# {[%clk 0:02:02]} 1-0


[Site "https://www.chess.com"]

[Event "Titled Tuesday Blitz January 25 2022"]
[White "De Silva, L M S T"]
[Black "Manukian, Artak"]
[WhiteFideId "9953698"]
[BlackFideId "13301373"]
[WhiteElo "1631"]
[BlackElo "2402"]
[Result "1-0"]
[Round "01"]
[TimeControl "180+1"]
[Date "2022.01.26"]
[WhiteClock "0:00:28"]
[BlackClock "0:00:03"]

1. e4 {[%clk 0:03:00]}  c6 {[%clk 0:02:59]} 2. d4 {[%clk 0:03:00]}  d5 {[%clk 0:02:59]} 3. Nc3 {[%clk 0:03:01]}  dxe4 {[%clk 0:02:59]} 4. Nxe4 {[%clk 0:03:02]}  Nf6 {[%clk 0:02:59]} 5. Nxf6+ {[%clk 0:03:01]}  exf6 {[%clk 0:03:00]} 6. c3 {[%clk 0:03:01]}  Bd6 {[%clk 0:03:01]} 7. Bd3 {[%clk 0:03:02]}  Na6 {[%clk 0:03:01]} 8. Ne2 {[%clk 0:03:03]}  Nc7 {[%clk 0:03:01]} 9. Qc2 {[%clk 0:03:03]}  Nd5 {[%clk 0:03:02]} 10. h3 {[%clk 0:03:02]}  h5 {[%clk 0:02:49]} 11. O-O {[%clk 0:03:01]}  O-O {[%clk 0:02:49]} 12. Bd2 {[%clk 0:03:01]}  Re8 {[%clk 0:02:49]} 13. Rae1 {[%clk 0:02:59]}  Qc7 {[%clk 0:02:47]} 14. a3 {[%clk 0:02:58]}  b5 {[%clk 0:02:35]} 15. c4 {[%clk 0:02:54]}  bxc4 {[%clk 0:02:34]} 16. Bxc4 {[%clk 0:02:55]}  Bb7 {[%clk 0:02:31]} 17. Nc3 {[%clk 0:02:51]}  g6 {[%clk 0:02:24]} 18. Ne4 {[%clk 0:02:49]}  Kg7 {[%clk 0:02:15]} 19. Nc5 {[%clk 0:02:23]}  Bxc5 {[%clk 0:02:02]} 20. dxc5 {[%clk 0:02:24]}  Qd7 {[%clk 0:01:56]} 21. b4 {[%clk 0:02:22]}  Rxe1 {[%clk 0:01:56]} 22. Rxe1 {[%clk 0:02:23]}  Re8 {[%clk 0:01:56]} 23. Rxe8 {[%clk 0:02:22]}  Qxe8 {[%clk 0:01:57]} 24. Bxd5 {[%clk 0:02:10]}  cxd5 {[%clk 0:01:56]} 25. Be3 {[%clk 0:02:11]}  Bc6 {[%clk 0:01:14]} 26. Bd4 {[%clk 0:02:07]}  Qe1+ {[%clk 0:01:10]} 27. Kh2 {[%clk 0:02:07]}  Qe4 {[%clk 0:01:10]} 28. Qb2 {[%clk 0:02:05]}  Qf4+ {[%clk 0:01:06]} 29. g3 {[%clk 0:02:05]}  Qf5 {[%clk 0:01:06]} 30. b5 {[%clk 0:02:04]}  Bd7 {[%clk 0:01:03]} 31. h4 {[%clk 0:01:56]}  g5 {[%clk 0:00:40]} 32. hxg5 {[%clk 0:01:52]}  Qxg5 {[%clk 0:00:40]} 33. c6 {[%clk 0:01:51]}  Bc8 {[%clk 0:00:39]} 34. Bxa7 {[%clk 0:00:55]}  h4 {[%clk 0:00:32]} 35. Qc3 {[%clk 0:00:55]}  Qf5 {[%clk 0:00:24]} 36. Bd4 {[%clk 0:00:53]}  Qe4 {[%clk 0:00:13]} 37. Bxf6+ {[%clk 0:00:51]}  Kg6 {[%clk 0:00:12]} 38. Bxh4 {[%clk 0:00:52]}  d4 {[%clk 0:00:09]} 39. Qd2 {[%clk 0:00:49]}  d3 {[%clk 0:00:08]} 40. b6 {[%clk 0:00:47]}  Qxc6 {[%clk 0:00:07]} 41. Qxd3+ {[%clk 0:00:48]}  Bf5 {[%clk 0:00:07]} 42. Qe3 {[%clk 0:00:45]}  f6 {[%clk 0:00:05]} 43. Qb3 {[%clk 0:00:38]}  Be4 {[%clk 0:00:05]} 44. Qg8+ {[%clk 0:00:38]}  Kf5 {[%clk 0:00:04]} 45. Qd8 {[%clk 0:00:31]}  Bh1 {[%clk 0:00:03]} 46. Qxf6+ {[%clk 0:00:28]} 1-0


[Site "https://www.chess.com"]

[Event "Titled Tuesday Blitz January 25 2022"]
[White "Dmitrenko, Viktor"]
[Black "Gaehwiler, Gabriel"]
[WhiteFideId "14110270"]
[BlackFideId "1314530"]
[WhiteElo "2262"]
[BlackElo "2383"]
[Result "0-1"]
[Round "01"]
[TimeControl "180+1"]
[Date "2022.01.26"]
[WhiteClock "0:01:22"]
[BlackClock "0:01:08"]

1. d4 {[%clk 0:03:00]}  Nf6 {[%clk 0:02:53]} 2. c4 {[%clk 0:03:00]}  g6 {[%clk 0:02:53]} 3. Nc3 {[%clk 0:02:59]}  Bg7 {[%clk 0:02:53]} 4. e4 {[%clk 0:02:59]}  O-O {[%clk 0:02:53]} 5. Be2 {[%clk 0:02:59]}  d6 {[%clk 0:02:52]} 6. h4 {[%clk 0:02:58]}  Nc6 {[%clk 0:02:49]} 7. Be3 {[%clk 0:02:51]}  e5 {[%clk 0:02:49]} 8. d5 {[%clk 0:02:51]}  Nd4 {[%clk 0:02:49]} 9. f3 {[%clk 0:02:45]}  Nh5 {[%clk 0:02:46]} 10. Bf2 {[%clk 0:02:39]}  Nf4 {[%clk 0:02:41]} 11. Bf1 {[%clk 0:02:38]}  f5 {[%clk 0:02:30]} 12. Qd2 {[%clk 0:02:26]}  Bh6 {[%clk 0:02:07]} 13. Be3 {[%clk 0:02:14]}  Nxg2+ {[%clk 0:02:06]} 14. Qxg2 {[%clk 0:02:06]}  Bxe3 {[%clk 0:02:05]} 15. h5 {[%clk 0:02:06]}  Qg5 {[%clk 0:01:55]} 16. hxg6 {[%clk 0:02:03]}  fxe4 {[%clk 0:01:25]} 17. Qh2 {[%clk 0:01:55]}  h6 {[%clk 0:01:15]} 18. Nxe4 {[%clk 0:01:41]}  Bxg1 {[%clk 0:01:10]} 19. Nxg5 {[%clk 0:01:33]}  Bxh2 {[%clk 0:01:09]} 20. Rxh2 {[%clk 0:01:22]}  hxg5 {[%clk 0:01:08]} 0-1


[Site "https://www.chess.com"]

[Event "Titled Tuesday Blitz January 25 2022"]
[White "Dovbnia, Nikita"]
[Black "Jaracz, Pawel"]
[WhiteFideId "54104599"]
[BlackFideId "1102222"]
[WhiteElo "2111"]
[BlackElo "2429"]
[Result "0-1"]
[Round "01"]
[TimeControl "180+1"]
[Date "2022.01.26"]
[WhiteClock "0:01:58"]
[BlackClock "0:01:42"]

1. d4 {[%clk 0:03:00]}  Nf6 {[%clk 0:02:59]} 2. c4 {[%clk 0:02:56]}  e6 {[%clk 0:02:58]} 3. Nc3 {[%clk 0:02:54]}  Bb4 {[%clk 0:02:57]} 4. Qb3 {[%clk 0:02:44]}  c5 {[%clk 0:02:56]} 5. Nf3 {[%clk 0:02:43]}  O-O {[%clk 0:02:55]} 6. dxc5 {[%clk 0:02:42]}  Na6 {[%clk 0:02:50]} 7. a3 {[%clk 0:02:41]}  Ba5 {[%clk 0:02:44]} 8. Qc2 {[%clk 0:02:38]}  Bxc3+ {[%clk 0:02:42]} 9. Qxc3 {[%clk 0:02:38]}  Nxc5 {[%clk 0:02:42]} 10. b4 {[%clk 0:02:39]}  Nce4 {[%clk 0:02:42]} 11. Qc2 {[%clk 0:02:37]}  a5 {[%clk 0:02:38]} 12. b5 {[%clk 0:02:30]}  d5 {[%clk 0:02:11]} 13. e3 {[%clk 0:02:26]}  Ng4 {[%clk 0:02:05]} 14. cxd5 {[%clk 0:02:19]}  exd5 {[%clk 0:02:05]} 15. h3 {[%clk 0:02:15]}  Ngxf2 {[%clk 0:02:05]} 16. Rg1 {[%clk 0:02:15]}  Bf5 {[%clk 0:02:04]} 17. Bb2 {[%clk 0:02:12]}  Rc8 {[%clk 0:02:01]} 18. Qb3 {[%clk 0:02:12]}  Nc5 {[%clk 0:01:52]} 19. Qa2 {[%clk 0:02:01]}  Ncd3+ {[%clk 0:01:44]} 20. Bxd3 {[%clk 0:02:00]}  Nxd3+ {[%clk 0:01:43]} 21. Kf1 {[%clk 0:02:00]}  Rc2 {[%clk 0:01:42]} 22. Rb1 {[%clk 0:01:58]}  Rf2# {[%clk 0:01:42]} 0-1


[Site "https://www.chess.com"]